[Event "44th Chess Olympiad Open 2022"]
[Site "Chennai"]
[Date "2022.08.05"]
[Round "7.88"]
[White "Stratonowitsch, Andre"]
[Black "Faulks, Nick"]
[Result "1-0"]
[WhiteElo "2142"]
[BlackElo "1820"]
[Annotator "NA"]
[PlyCount "57"]
[EventDate "2022.??.??"]
[TimeControl "60"]

1. e4 {[%emt 0:00:02]} c5 {[%emt 0:00:08]} 2. Nf3 {[%emt 0:00:05]} e6 {[%emt 0:
00:00]} 3. d4 {[%emt 0:00:06]} cxd4 {[%emt 0:00:04]} 4. Nxd4 {[%emt 0:00:06]}
Nc6 {[%emt 0:00:07]} 5. Nc3 {[%emt 0:02:01]} Qc7 {[%emt 0:00:17]} 6. Ndb5 {
[%emt 0:05:11]} Qb8 {[%emt 0:00:17]} 7. Be3 {[%emt 0:00:17]} a6 {[%emt 0:02:16]
} 8. Nd4 {[%emt 0:04:04]} Nf6 {[%emt 0:10:11]} 9. Be2 {[%emt 0:02:05]} Bb4 {
[%emt 0:03:39]} 10. Nxc6 {[%emt 0:02:49]} bxc6 {[%emt 0:01:18]} 11. O-O {
[%emt 0:01:15]} Bxc3 {[%emt 0:07:39]} 12. bxc3 {[%emt 0:01:09]} Nxe4 {[%emt 0:
00:00]} 13. Bf3 {[%emt 0:03:07]} Nf6 {[%emt 0:04:03]} 14. Bc5 {[%emt 0:00:10]}
d5 {[%emt 0:01:40]} 15. Qd4 {[%emt 0:13:11]} e5 {[%emt 0:12:30]} 16. Qh4 {
[%emt 0:07:21]} h6 {[%emt 0:10:24]} 17. Rfe1 {[%emt 0:16:19]} Be6 {[%emt 0:00:
00]} 18. Qg3 {[%emt 0:04:29]} g5 {[%emt 0:04:43]} 19. Rxe5 {[%emt 0:03:38]} Nd7
{[%emt 0:04:40]} 20. Rxe6+ {[%emt 0:09:21]} fxe6 {[%emt 0:00:17]} 21. Bd6 {
[%emt 0:00:04]} Qb2 {[%emt 0:06:21]} 22. Bh5+ {[%emt 0:02:51]} Kd8 {[%emt 0:00:
00]} 23. Re1 {[%emt 0:00:02]} Qxc2 {[%emt 0:08:18]} 24. h3 {[%emt 0:00:35]} Nf6
{[%emt 0:03:06]} 25. Qe5 {[%emt 0:09:24]} Ne4 {[%emt 0:00:53]} 26. Rxe4 {
[%emt 0:03:09]} Qxe4 {[%emt 0:02:07]} 27. Qf6+ {[%emt 0:03:47]} Kc8 {[%emt 0:
00:00]} 28. Qxh8+ {[%emt 0:01:39]} Kb7 {[%emt 0:00:25]} 29. Qg7+ {[%emt 0:00:
00]} 1-0

[Event "44th Chess Olympiad Open 2022"]
[Site "Chennai"]
[Date "2022.08.05"]
[Round "7.88"]
[White "Pillay, Ragul"]
[Black "Gontcharov, Dimitri"]
[Result "1-0"]
[WhiteElo "1341"]
[BlackElo "1448"]
[Annotator "NA"]
[PlyCount "93"]
[EventDate "2022.??.??"]
[TimeControl "60"]

1. d4 {[%emt 0:00:02]} d5 {[%emt 0:00:12]} 2. c4 {[%emt 0:00:08]} e6 {[%emt 0:
00:00]} 3. Nc3 {[%emt 0:00:33]} Nf6 {[%emt 0:00:24]} 4. Bg5 {[%emt 0:00:39]}
Be7 {[%emt 0:00:38]} 5. Nf3 {[%emt 0:01:10]} O-O {[%emt 0:01:33]} 6. e3 {
[%emt 0:00:25]} b6 {[%emt 0:02:04]} 7. Be2 {[%emt 0:01:32]} Bb7 {[%emt 0:01:25]
} 8. O-O {[%emt 0:04:28]} Nbd7 {[%emt 0:04:09]} 9. Rc1 {[%emt 0:03:54]} Rc8 {
[%emt 0:10:08]} 10. Bf4 {[%emt 0:08:30]} a6 {[%emt 0:15:07]} 11. cxd5 {[%emt 0:
00:00]} exd5 {[%emt 0:04:56]} 12. Ne5 {[%emt 0:08:14]} c5 {[%emt 0:04:43]} 13.
Bd3 {[%emt 0:15:03]} Nxe5 {[%emt 0:11:33]} 14. Bxe5 {[%emt 0:00:55]} Bd6 {
[%emt 0:01:13]} 15. Bxd6 {[%emt 0:02:39]} Qxd6 {[%emt 0:00:14]} 16. Ne2 {
[%emt 0:01:24]} c4 {[%emt 0:04:56]} 17. Bf5 {[%emt 0:03:02]} Rc7 {[%emt 0:00:
00]} 18. Nf4 {[%emt 0:04:13]} Bc8 {[%emt 0:00:46]} 19. Bb1 {[%emt 0:08:30]} Bd7
{[%emt 0:02:14]} 20. Qf3 {[%emt 0:01:35]} Re8 {[%emt 0:02:57]} 21. Rc3 {
[%emt 0:08:54]} a5 {[%emt 0:05:21]} 22. Qg3 {[%emt 0:00:59]} Ne4 {[%emt 0:00:
00]} 23. Bxe4 {[%emt 0:01:15]} Rxe4 {[%emt 0:00:38]} 24. Nxd5 {[%emt 0:02:42]}
Qxg3 {[%emt 0:05:05]} 25. hxg3 {[%emt 0:00:34]} Rc6 {[%emt 0:00:31]} 26. f3 {
[%emt 0:02:00]} Re8 {[%emt 0:00:22]} 27. e4 {[%emt 0:00:35]} b5 {[%emt 0:01:03]
} 28. Rfc1 {[%emt 0:01:00]} Kf8 {[%emt 0:03:22]} 29. b3 {[%emt 0:00:25]} Rec8 {
[%emt 0:00:33]} 30. bxc4 {[%emt 0:01:29]} Rxc4 {[%emt 0:01:04]} 31. Rxc4 {
[%emt 0:01:19]} Rxc4 {[%emt 0:00:08]} 32. Rxc4 {[%emt 0:00:08]} bxc4 {[%emt 0:
00:00]} 33. Nc3 {[%emt 0:00:08]} Ke7 {[%emt 0:00:52]} 34. Kf2 {[%emt 0:01:05]}
Kd6 {[%emt 0:00:33]} 35. Ke3 {[%emt 0:01:54]} f6 {[%emt 0:01:52]} 36. f4 {
[%emt 0:02:16]} Bg4 {[%emt 0:01:22]} 37. e5+ {[%emt 0:02:53]} fxe5 {[%emt 0:00:
00]} 38. fxe5+ {[%emt 0:00:09]} Ke6 {[%emt 0:00:18]} 39. Ke4 {[%emt 0:02:07]}
Bf5+ {[%emt 0:00:42]} 40. Kf4 {[%emt 0:00:38]} Bd3 {[%emt 0:01:31]} 41. d5+ {
[%emt 0:31:44]} Ke7 {[%emt 0:30:22]} 42. g4 {[%emt 0:02:06]} h6 {[%emt 0:00:58]
} 43. g5 {[%emt 0:00:24]} h5 {[%emt 0:00:11]} 44. e6 {[%emt 0:01:59]} Bg6 {
[%emt 0:00:37]} 45. Ke5 {[%emt 0:00:33]} h4 {[%emt 0:01:28]} 46. d6+ {[%emt 0:
00:00]} Kd8 {[%emt 0:00:15]} 47. d7 {[%emt 0:00:46]} 1-0

[Event "44th Chess Olympiad Open 2022"]
[Site "Chennai"]
[Date "2022.08.05"]
[Round "7.89"]
[White "Terubea, Ronald"]
[Black "de Araujo, Helder"]
[Result "0-1"]
[WhiteElo "1742"]
[BlackElo "1742"]
[Annotator "NA"]
[PlyCount "102"]
[EventDate "2022.??.??"]
[TimeControl "60"]

1. Nc3 {[%emt 0:00:11]} d5 {[%emt 0:00:47]} 2. d4 {[%emt 0:01:13]} Nf6 {
[%emt 0:00:15]} 3. Nf3 {[%emt 0:01:26]} g6 {[%emt 0:00:53]} 4. Bf4 {[%emt 0:00:
00]} c6 {[%emt 0:00:41]} 5. g3 {[%emt 0:01:56]} Bg7 {[%emt 0:00:23]} 6. Bg2 {
[%emt 0:00:51]} O-O {[%emt 0:00:20]} 7. O-O {[%emt 0:00:23]} Na6 {[%emt 0:00:
00]} 8. Re1 {[%emt 0:07:02]} Nc7 {[%emt 0:01:54]} 9. e4 {[%emt 0:01:48]} dxe4 {
[%emt 0:02:01]} 10. Nxe4 {[%emt 0:01:44]} Ncd5 {[%emt 0:02:50]} 11. Be5 {
[%emt 0:03:44]} Nxe4 {[%emt 0:01:11]} 12. Bxg7 {[%emt 0:01:04]} Nxf2 {[%emt 0:
00:00]} 13. Kxf2 {[%emt 0:01:34]} Kxg7 {[%emt 0:00:20]} 14. Qe2 {[%emt 0:02:07]
} Bf5 {[%emt 0:03:14]} 15. a3 {[%emt 0:02:14]} e6 {[%emt 0:02:06]} 16. h3 {
[%emt 0:04:50]} h5 {[%emt 0:01:15]} 17. Rad1 {[%emt 0:06:27]} Qf6 {[%emt 0:00:
00]} 18. c3 {[%emt 0:04:00]} g5 {[%emt 0:01:30]} 19. Qd2 {[%emt 0:06:06]} g4 {
[%emt 0:01:53]} 20. hxg4 {[%emt 0:03:17]} hxg4 {[%emt 0:00:34]} 21. Qg5+ {
[%emt 0:02:57]} Qxg5 {[%emt 0:02:03]} 22. Nxg5 {[%emt 0:00:12]} Kg6 {[%emt 0:
00:00]} 23. Ne4 {[%emt 0:00:47]} Rad8 {[%emt 0:05:44]} 24. Nc5 {[%emt 0:02:04]}
b6 {[%emt 0:01:29]} 25. Nd3 {[%emt 0:00:21]} f6 {[%emt 0:01:52]} 26. c4 {
[%emt 0:01:31]} Ne7 {[%emt 0:01:10]} 27. d5 {[%emt 0:06:55]} cxd5 {[%emt 0:00:
00]} 28. cxd5 {[%emt 0:09:57]} Nxd5 {[%emt 0:01:31]} 29. Bxd5 {[%emt 0:00:39]}
exd5 {[%emt 0:02:20]} 30. Re7 {[%emt 0:01:44]} Bxd3 {[%emt 0:02:29]} 31. Rxd3 {
[%emt 0:00:13]} Rf7 {[%emt 0:00:21]} 32. Rxf7 {[%emt 0:01:28]} Kxf7 {[%emt 0:
00:00]} 33. Ke3 {[%emt 0:00:10]} Kg6 {[%emt 0:01:12]} 34. Kd4 {[%emt 0:00:20]}
Kg5 {[%emt 0:01:07]} 35. Re3 {[%emt 0:00:26]} Rd7 {[%emt 0:01:20]} 36. Re8 {
[%emt 0:00:29]} f5 {[%emt 0:01:24]} 37. a4 {[%emt 0:03:45]} Kf6 {[%emt 0:01:28]
} 38. Rh8 {[%emt 0:04:12]} Kg7 {[%emt 0:02:57]} 39. Rh5 {[%emt 0:01:10]} Kg6 {
[%emt 0:00:26]} 40. Rh8 {[%emt 0:00:16]} Rh7 {[%emt 0:01:25]} 41. Rg8+ {
[%emt 0:36:51]} Rg7 {[%emt 0:30:43]} 42. Rf8 {[%emt 0:00:21]} Rf7 {[%emt 0:00:
00]} 43. Rg8+ {[%emt 0:01:31]} Kh7 {[%emt 0:01:58]} 44. Rg5 {[%emt 0:00:18]} f4
{[%emt 0:01:43]} 45. Rxg4 {[%emt 0:00:20]} f3 {[%emt 0:00:25]} 46. Rh4+ {
[%emt 0:00:42]} Kg6 {[%emt 0:00:25]} 47. Rh1 {[%emt 0:00:54]} Kg5 {[%emt 0:00:
00]} 48. Ke3 {[%emt 0:01:39]} f2 {[%emt 0:02:49]} 49. Rf1 {[%emt 0:06:29]} d4+
{[%emt 0:00:07]} 50. Ke2 {[%emt 0:01:07]} d3+ {[%emt 0:00:10]} 51. Kxd3 {
[%emt 0:00:00]} Kg4 {[%emt 0:00:00]} 0-1

[Event "44th Chess Olympiad Open 2022"]
[Site "Chennai"]
[Date "2022.08.05"]
[Round "7.89"]
[White "da Conceicao, Marcos"]
[Black "Prasad, Rudr"]
[Result "0-1"]
[WhiteElo "1713"]
[BlackElo "1566"]
[Annotator "NA RC"]
[PlyCount "72"]
[EventDate "2022.??.??"]
[TimeControl "60"]

1. d4 {[%emt 0:00:08]} d5 {[%emt 0:00:13]} 2. Bf4 {[%emt 0:00:24]} c5 {[%emt 0:
00:00]} 3. c3 {[%emt 0:03:03]} cxd4 {[%emt 0:00:27]} 4. cxd4 {[%emt 0:00:21]}
Nc6 {[%emt 0:00:10]} 5. e3 {[%emt 0:00:47]} Nf6 {[%emt 0:00:41]} 6. Nc3 {
[%emt 0:00:29]} Bf5 {[%emt 0:01:18]} 7. a3 {[%emt 0:02:36]} a6 {[%emt 0:00:51]}
8. h3 {[%emt 0:00:19]} e6 {[%emt 0:00:35]} 9. Nf3 {[%emt 0:00:26]} Bd6 {
[%emt 0:01:07]} 10. Ne5 {[%emt 0:05:40]} Qc7 {[%emt 0:01:08]} 11. Bd3 {[%emt 0:
00:00]} Bg6 {[%emt 0:01:39]} 12. Bxg6 {[%emt 0:01:07]} hxg6 {[%emt 0:00:19]}
13. Rc1 {[%emt 0:01:43]} Nxe5 {[%emt 0:04:43]} 14. dxe5 {[%emt 0:01:40]} Bxe5 {
[%emt 0:00:49]} 15. Bg5 {[%emt 0:01:10]} Rc8 {[%emt 0:02:28]} 16. O-O {[%emt 0:
00:00]} O-O {[%emt 0:01:03]} 17. f4 {[%emt 0:02:09]} Bxc3 {[%emt 0:00:38]} 18.
Rxc3 {[%emt 0:01:03]} Qb6 {[%emt 0:00:18]} 19. Rb3 {[%emt 0:02:12]} Qc7 {
[%emt 0:02:50]} 20. Qd4 {[%emt 0:08:08]} Ne4 {[%emt 0:01:45]} 21. Bh4 {[%emt 0:
00:00]} b5 {[%emt 0:01:14]} 22. Rd1 {[%emt 0:11:33]} Qc4 {[%emt 0:03:34]} 23.
Rb4 {[%emt 0:01:24]} Qxd4 {[%emt 0:00:37]} 24. Rdxd4 {[%emt 0:00:49]} Rc2 {
[%emt 0:01:40]} 25. b3 {[%emt 0:05:15]} Nd2 {[%emt 0:04:45]} 26. a4 {[%emt 0:
00:00]} Rc1+ {[%emt 0:01:43]} 27. Kf2 {[%emt 0:01:38]} Ne4+ {[%emt 0:00:35]}
28. Kf3 {[%emt 0:04:50]} Rfc8 {[%emt 0:01:28]} 29. axb5 {[%emt 0:09:30]} R8c2 {
[%emt 0:01:53]} 30. Rxe4 {[%emt 0:02:28]} Rf1+ {[%emt 0:01:47]} 31. Kg3 {
[%emt 0:00:41]} dxe4 {[%emt 0:00:12]} 32. b6 {[%emt 0:00:49]} Rc8 {[%emt 0:00:
00]} 33. Be7 {[%emt 0:04:48]} Rd1 {[%emt 0:01:40]} 34. b7 {[%emt 0:01:10]} Rb8
{[%emt 0:00:25]} 35. Rxe4 {[%emt 0:03:13]} Rxb7 {[%emt 0:00:26]} 36. b4 {
[%emt 0:00:13]} Rxe7 {[%emt 0:00:08]} 0-1

[Event "44th Chess Olympiad Open 2022"]
[Site "Chennai"]
[Date "2022.08.05"]
[Round "7.89"]
[White "Guterres, Cosme"]
[Black "Nadan, Avinesh"]
[Result "1/2-1/2"]
[WhiteElo "1692"]
[BlackElo "1540"]
[Annotator "NA RC"]
[PlyCount "215"]
[EventDate "2022.??.??"]
[TimeControl "60"]

1. d4 {[%emt 0:00:11]} d5 {[%emt 0:00:42]} 2. c3 {[%emt 0:00:14]} Nf6 {[%emt 0:
00:00]} 3. Nf3 {[%emt 0:00:19]} Nc6 {[%emt 0:02:41]} 4. Bf4 {[%emt 0:00:48]} h6
{[%emt 0:01:26]} 5. Nbd2 {[%emt 0:00:26]} Bf5 {[%emt 0:00:28]} 6. e3 {[%emt 0:
00:00]} e6 {[%emt 0:00:25]} 7. Be2 {[%emt 0:00:21]} Be7 {[%emt 0:00:54]} 8. h3
{[%emt 0:00:27]} Ne4 {[%emt 0:06:30]} 9. Qa4 {[%emt 0:01:57]} O-O {[%emt 0:00:
00]} 10. Rc1 {[%emt 0:01:26]} Nb8 {[%emt 0:02:33]} 11. b4 {[%emt 0:00:40]} Nd7
{[%emt 0:01:12]} 12. Nxe4 {[%emt 0:00:57]} Bxe4 {[%emt 0:00:24]} 13. O-O {
[%emt 0:00:29]} c6 {[%emt 0:00:20]} 14. Nd2 {[%emt 0:00:49]} Bh7 {[%emt 0:00:
00]} 15. c4 {[%emt 0:01:12]} dxc4 {[%emt 0:00:42]} 16. Rfe1 {[%emt 0:01:18]} b5
{[%emt 0:02:03]} 17. Qd1 {[%emt 0:01:58]} Bxb4 {[%emt 0:00:34]} 18. Rf1 {
[%emt 0:00:33]} Ba3 {[%emt 0:00:38]} 19. Nf3 {[%emt 0:00:59]} Bxc1 {[%emt 0:00:
00]} 20. Qxc1 {[%emt 0:00:34]} Qa5 {[%emt 0:01:18]} 21. Bd6 {[%emt 0:00:43]}
Rfe8 {[%emt 0:01:38]} 22. a3 {[%emt 0:00:38]} Qb6 {[%emt 0:01:08]} 23. Ne5 {
[%emt 0:01:13]} Nxe5 {[%emt 0:00:38]} 24. Bxe5 {[%emt 0:00:55]} c5 {[%emt 0:00:
00]} 25. dxc5 {[%emt 0:00:54]} Qxc5 {[%emt 0:00:17]} 26. Bd4 {[%emt 0:00:28]}
Qc7 {[%emt 0:00:30]} 27. Qb2 {[%emt 0:01:56]} e5 {[%emt 0:05:29]} 28. Bc3 {
[%emt 0:00:24]} Rab8 {[%emt 0:01:29]} 29. Rd1 {[%emt 0:01:03]} a6 {[%emt 0:00:
00]} 30. Bg4 {[%emt 0:02:03]} Bd3 {[%emt 0:01:09]} 31. Re1 {[%emt 0:01:01]} f5
{[%emt 0:00:27]} 32. Bh5 {[%emt 0:00:48]} Re7 {[%emt 0:00:37]} 33. g3 {[%emt 0:
00:00]} Kh7 {[%emt 0:01:35]} 34. Qd2 {[%emt 0:01:08]} g6 {[%emt 0:01:03]} 35.
Bf3 {[%emt 0:00:40]} Rd7 {[%emt 0:00:47]} 36. Qb2 {[%emt 0:00:28]} Re8 {
[%emt 0:01:06]} 37. Ra1 {[%emt 0:00:31]} e4 {[%emt 0:04:25]} 38. Bg2 {[%emt 0:
00:00]} g5 {[%emt 0:01:25]} 39. a4 {[%emt 0:01:14]} Qb6 {[%emt 0:04:09]} 40.
axb5 {[%emt 0:01:42]} Qxb5 {[%emt 0:00:31]} 41. Qc1 {[%emt 0:30:42]} Be2 {
[%emt 0:30:44]} 42. Bd4 {[%emt 0:01:50]} Bd3 {[%emt 0:03:13]} 43. Bc3 {[%emt 0:
00:00]} Rb8 {[%emt 0:01:41]} 44. Kh2 {[%emt 0:01:03]} Ra7 {[%emt 0:01:33]} 45.
Qa3 {[%emt 0:03:14]} Rbb7 {[%emt 0:02:33]} 46. Qf8 {[%emt 0:00:47]} Rb8 {
[%emt 0:01:48]} 47. Qf6 {[%emt 0:00:55]} Qd7 {[%emt 0:10:14]} 48. Ra5 {[%emt 0:
00:00]} Qf7 {[%emt 0:01:06]} 49. Qd6 {[%emt 0:03:08]} Rb5 {[%emt 0:03:51]} 50.
Rxa6 {[%emt 0:01:22]} Rxa6 {[%emt 0:00:42]} 51. Qxa6 {[%emt 0:00:23]} Rb7 {
[%emt 0:01:07]} 52. Qa8 {[%emt 0:00:24]} f4 {[%emt 0:03:50]} 53. Bd4 {[%emt 0:
00:00]} fxg3+ {[%emt 0:04:04]} 54. fxg3 {[%emt 0:05:33]} Re7 {[%emt 0:00:29]}
55. Bc3 {[%emt 0:00:54]} Re8 {[%emt 0:00:23]} 56. Qc6 {[%emt 0:01:01]} Qe6 {
[%emt 0:01:55]} 57. Qc7+ {[%emt 0:00:49]} Re7 {[%emt 0:01:20]} 58. Qd8 {
[%emt 0:01:14]} Ra7 {[%emt 0:02:27]} 59. Qf8 {[%emt 0:00:52]} Qf7 {[%emt 0:00:
00]} 60. Qh8+ {[%emt 0:00:18]} Kg6 {[%emt 0:00:07]} 61. Qe5 {[%emt 0:02:35]}
Ra2 {[%emt 0:00:31]} 62. Kh1 {[%emt 0:01:32]} Rxg2 {[%emt 0:05:10]} 63. Kxg2 {
[%emt 0:00:45]} Bf1+ {[%emt 0:00:11]} 64. Kg1 {[%emt 0:01:24]} Bxh3 {[%emt 0:
00:00]} 65. Qxe4+ {[%emt 0:00:38]} Kh5 {[%emt 0:00:55]} 66. Kh2 {[%emt 0:02:46]
} Bd7 {[%emt 0:00:43]} 67. Kg1 {[%emt 0:01:38]} Qe6 {[%emt 0:00:52]} 68. Qf3+ {
[%emt 0:01:39]} Kg6 {[%emt 0:01:12]} 69. Bd4 {[%emt 0:04:35]} Bc6 {[%emt 0:00:
00]} 70. Qf2 {[%emt 0:01:26]} Qe4 {[%emt 0:00:50]} 71. Kf1 {[%emt 0:02:11]}
Qd3+ {[%emt 0:06:02]} 72. Qe2 {[%emt 0:01:13]} Qb1+ {[%emt 0:00:00]} 73. Qe1 {
[%emt 0:00:00]} Qf5+ {[%emt 0:00:00]} 74. Qf2 {[%emt 0:00:00]} Qh3+ {[%emt 0:
00:00]} 75. Ke2 {[%emt 0:00:00]} Qe6 {[%emt 0:00:00]} 76. Kd2 {[%emt 0:00:00]}
g4 {[%emt 0:00:00]} 77. Qf4 {[%emt 0:00:00]} Bf3 {[%emt 0:00:00]} 78. Kc3 {
[%emt 0:00:00]} Be4 {[%emt 0:00:00]} 79. Kb4 {[%emt 0:00:00]} Bd3 {[%emt 0:00:
00]} 80. Kc3 {[%emt 0:00:00]} Qf5 {[%emt 0:00:00]} 81. Qd6+ {[%emt 0:00:00]}
Kh5 {[%emt 0:00:00]} 82. Qc7 {[%emt 0:00:00]} Be2 {[%emt 0:00:00]} 83. Kb4 {
[%emt 0:00:00]} Qf8+ {[%emt 0:00:00]} 84. Bc5 {[%emt 0:00:00]} Qf5 {[%emt 0:00:
00]} 85. Bd4 {[%emt 0:00:00]} Qb1+ {[%emt 0:00:00]} 86. Kc5 {[%emt 0:00:00]}
Qf5+ {[%emt 0:00:00]} 87. Kb4 {[%emt 0:00:00]} Qe6 {[%emt 0:00:00]} 88. Kc3 {
[%emt 0:00:00]} Bf3 {[%emt 0:00:00]} 89. Qxc4 {[%emt 0:00:00]} Qxc4+ {[%emt 0:
00:00]} 90. Kxc4 {[%emt 0:00:00]} Kg5 {[%emt 0:00:00]} 91. Be5 {[%emt 0:00:00]}
Kf5 {[%emt 0:00:00]} 92. Kd4 {[%emt 0:00:00]} h5 {[%emt 0:00:00]} 93. Bf4 {
[%emt 0:00:00]} Be4 {[%emt 0:00:00]} 94. Bb8 {[%emt 0:00:00]} Bf3 {[%emt 0:00:
00]} 95. Bc7 {[%emt 0:00:00]} Bc6 {[%emt 0:00:00]} 96. Bd8 {[%emt 0:00:00]} Bf3
{[%emt 0:00:00]} 97. Bh4 {[%emt 0:00:00]} Bc6 {[%emt 0:00:00]} 98. Be7 {
[%emt 0:00:00]} Ke6 {[%emt 0:00:00]} 99. Bd8 {[%emt 0:00:00]} Kd7 {[%emt 0:00:
00]} 100. Bg5 {[%emt 0:00:00]} Ke6 {[%emt 0:00:00]} 101. e4 {[%emt 0:00:00]}
Ba8 {[%emt 0:00:00]} 102. Ke3 {[%emt 0:00:00]} Ke5 {[%emt 0:00:00]} 103. Bf4+ {
[%emt 0:00:00]} Kf6 {[%emt 0:00:00]} 104. Kd4 {[%emt 0:00:00]} Ke6 {[%emt 0:00:
00]} 105. Bb8 {[%emt 0:00:00]} Bc6 {[%emt 0:00:10]} 106. Ke3 {[%emt 0:00:00]}
Be8 {[%emt 0:00:38]} 107. Kf4 {[%emt 0:00:00]} Bf7 {[%emt 0:03:28]} 108. Be5 {
[%emt 0:00:00]} 1/2-1/2

[Event "44th Chess Olympiad Open 2022"]
[Site "Chennai"]
[Date "2022.08.05"]
[Round "7.89"]
[White "Jaiswal Prashant S"]
[Black "dos Reis, Tito"]
[Result "0-1"]
[WhiteElo "1683"]
[BlackElo "1658"]
[Annotator "NA"]
[PlyCount "184"]
[EventDate "2022.??.??"]
[TimeControl "60"]

1. d4 {[%emt 0:01:33]} d6 {[%emt 0:00:37]} 2. c4 {[%emt 0:02:12]} Nf6 {[%emt 0:
00:00]} 3. Nc3 {[%emt 0:01:13]} c6 {[%emt 0:00:13]} 4. e4 {[%emt 0:01:05]} Qa5
{[%emt 0:01:52]} 5. Bd3 {[%emt 0:01:14]} e5 {[%emt 0:00:28]} 6. d5 {[%emt 0:00:
00]} Be7 {[%emt 0:00:51]} 7. Nge2 {[%emt 0:00:40]} Nbd7 {[%emt 0:02:30]} 8. O-O
{[%emt 0:00:27]} Nc5 {[%emt 0:01:58]} 9. Bc2 {[%emt 0:02:12]} h6 {[%emt 0:00:
00]} 10. Be3 {[%emt 0:01:21]} Ng4 {[%emt 0:01:54]} 11. Bd2 {[%emt 0:01:44]} Qc7
{[%emt 0:01:11]} 12. b4 {[%emt 0:04:46]} Nd7 {[%emt 0:02:17]} 13. Ng3 {[%emt 0:
00:00]} Nb6 {[%emt 0:01:52]} 14. Qe2 {[%emt 0:02:17]} Nf6 {[%emt 0:00:44]} 15.
Rac1 {[%emt 0:03:38]} a6 {[%emt 0:01:50]} 16. a4 {[%emt 0:01:55]} Bd7 {[%emt 0:
00:00]} 17. a5 {[%emt 0:03:45]} Nc8 {[%emt 0:00:19]} 18. Ba4 {[%emt 0:02:55]}
Na7 {[%emt 0:01:05]} 19. Rfd1 {[%emt 0:04:52]} Bg4 {[%emt 0:04:20]} 20. f3 {
[%emt 0:00:25]} Bd7 {[%emt 0:00:46]} 21. Rb1 {[%emt 0:12:35]} Rc8 {[%emt 0:00:
00]} 22. Rdc1 {[%emt 0:00:42]} c5 {[%emt 0:02:34]} 23. Bxd7+ {[%emt 0:05:48]}
Qxd7 {[%emt 0:00:23]} 24. bxc5 {[%emt 0:00:25]} dxc5 {[%emt 0:00:32]} 25. Nf5 {
[%emt 0:01:10]} Bf8 {[%emt 0:05:16]} 26. Rb6 {[%emt 0:00:23]} Rc7 {[%emt 0:00:
00]} 27. Rcb1 {[%emt 0:01:58]} Nc8 {[%emt 0:00:19]} 28. R6b2 {[%emt 0:00:57]}
g6 {[%emt 0:00:13]} 29. Ne3 {[%emt 0:00:22]} Bg7 {[%emt 0:03:53]} 30. Qd1 {
[%emt 0:00:19]} O-O {[%emt 0:01:10]} 31. Rb3 {[%emt 0:02:59]} Ne8 {[%emt 0:00:
00]} 32. R3b2 {[%emt 0:02:24]} Ned6 {[%emt 0:00:27]} 33. Na4 {[%emt 0:01:25]}
f5 {[%emt 0:01:08]} 34. Nb6 {[%emt 0:14:38]} Qe7 {[%emt 0:04:16]} 35. Nxc8 {
[%emt 0:01:08]} Rfxc8 {[%emt 0:01:31]} 36. Qc2 {[%emt 0:00:35]} f4 {[%emt 0:00:
00]} 37. Nd1 {[%emt 0:01:27]} Rf8 {[%emt 0:01:20]} 38. Qd3 {[%emt 0:01:31]} Rf7
{[%emt 0:02:23]} 39. Nc3 {[%emt 0:00:19]} Qd7 {[%emt 0:00:26]} 40. Ra1 {
[%emt 0:00:47]} Rf6 {[%emt 0:01:39]} 41. Na4 {[%emt 0:30:38]} g5 {[%emt 0:00:
00]} 42. Be1 {[%emt 0:00:43]} Rg6 {[%emt 0:00:18]} 43. h3 {[%emt 0:03:08]} h5 {
[%emt 0:02:44]} 44. Bf2 {[%emt 0:01:21]} Qc8 {[%emt 0:00:28]} 45. Nb6 {[%emt 0:
00:00]} Qd8 {[%emt 0:00:25]} 46. Rc1 {[%emt 0:01:51]} g4 {[%emt 0:00:30]} 47.
hxg4 {[%emt 0:03:51]} hxg4 {[%emt 0:01:03]} 48. fxg4 {[%emt 0:00:07]} Rxg4 {
[%emt 0:00:43]} 49. Qf3 {[%emt 0:00:00]} Qg5 {[%emt 0:00:00]} 50. Rc3 {[%emt 0:
00:00]} Bf6 {[%emt 0:00:00]} 51. Kf1 {[%emt 0:00:00]} Qg6 {[%emt 0:00:00]} 52.
Re2 {[%emt 0:00:00]} Bh4 {[%emt 0:00:00]} 53. Bxh4 {[%emt 0:00:00]} Rxh4 {
[%emt 0:00:00]} 54. Ke1 {[%emt 0:00:00]} Rg4 {[%emt 0:00:00]} 55. Qf1 {[%emt 0:
00:00]} Nxe4 {[%emt 0:00:00]} 56. d6 {[%emt 0:01:28]} Nxd6 {[%emt 0:00:00]} 57.
Rh3 {[%emt 0:01:14]} Qb1+ {[%emt 0:00:00]} 58. Kf2 {[%emt 0:00:24]} Ne4+ {
[%emt 0:00:00]} 59. Kg1 {[%emt 0:00:18]} Qxf1+ {[%emt 0:00:00]} 60. Kxf1 {
[%emt 0:00:05]} Ng3+ {[%emt 0:00:00]} 61. Rxg3 {[%emt 0:00:33]} Rxg3 {[%emt 0:
00:00]} 62. Rxe5 {[%emt 0:00:18]} f3 {[%emt 0:00:00]} 63. gxf3 {[%emt 0:00:39]}
Rxf3+ {[%emt 0:00:00]} 64. Ke2 {[%emt 0:01:00]} Ra3 {[%emt 0:00:00]} 65. Kd2 {
[%emt 0:01:21]} Rxa5 {[%emt 0:00:00]} 66. Kc3 {[%emt 0:00:19]} Ra3+ {[%emt 0:
00:00]} 67. Kb2 {[%emt 0:00:15]} Rf3 {[%emt 0:00:00]} 68. Nd5 {[%emt 0:00:36]}
Rg7 {[%emt 0:00:00]} 69. Re2 {[%emt 0:00:51]} b5 {[%emt 0:00:00]} 70. cxb5 {
[%emt 0:00:32]} axb5 {[%emt 0:00:00]} 71. Nc3 {[%emt 0:00:25]} Rgf7 {[%emt 0:
00:00]} 72. Ne4 {[%emt 0:00:37]} c4 {[%emt 0:02:23]} 73. Nd6 {[%emt 0:00:34]}
Rf2 {[%emt 0:01:02]} 74. Rxf2 {[%emt 0:00:13]} Rxf2+ {[%emt 0:00:08]} 75. Kc3 {
[%emt 0:00:32]} Rf3+ {[%emt 0:00:24]} 76. Kc2 {[%emt 0:00:48]} Rb3 {[%emt 0:00:
00]} 77. Ne4 {[%emt 0:00:28]} Kf7 {[%emt 0:00:22]} 78. Nd2 {[%emt 0:00:28]} Rh3
{[%emt 0:00:23]} 79. Ne4 {[%emt 0:00:14]} Ke7 {[%emt 0:00:23]} 80. Ng5 {
[%emt 0:00:27]} Rb3 {[%emt 0:01:06]} 81. Ne4 {[%emt 0:00:14]} Re3 {[%emt 0:00:
00]} 82. Ng5 {[%emt 0:01:08]} Kd7 {[%emt 0:00:26]} 83. Kd2 {[%emt 0:00:26]}
Rd3+ {[%emt 0:00:24]} 84. Kc2 {[%emt 0:00:21]} Kc6 {[%emt 0:00:16]} 85. Ne4 {
[%emt 0:00:17]} b4 {[%emt 0:00:27]} 86. Nf2 {[%emt 0:00:53]} Rg3 {[%emt 0:00:
00]} 87. Ne4 {[%emt 0:00:24]} Rg2+ {[%emt 0:00:09]} 88. Kc1 {[%emt 0:00:21]}
Kd5 {[%emt 0:00:24]} 89. Nf6+ {[%emt 0:00:25]} Kd4 {[%emt 0:00:20]} 90. Nd7 {
[%emt 0:00:31]} Kc3 {[%emt 0:00:13]} 91. Kd1 {[%emt 0:00:18]} b3 {[%emt 0:00:
00]} 92. Nc5 {[%emt 0:00:26]} Kb4 {[%emt 0:00:36]} 0-1